fUSD/lending_fUSD_20250109
["ID","MTS","AMOUNT","RATE_DAILY","PERIOD"]
[348208043,1736391049271,-500.0,0.00010545,2]
[348208044,1736391049281,-717.41,0.00010545,2]
[348208045,1736391049291,-500.0,0.00010545,2]
[348208046,1736391049300,-500.0,0.00010545,2]
[348208047,1736391049310,-1933.11,0.00010545,2]
[348208048,1736391049319,-500.0,0.00010545,2]
[348208049,1736391049328,-500.0,0.00010545,2]
[348208050,1736391049338,-1249.27,0.00010545,2]
[348208051,1736391049347,-511.79367544,0.00010545,2]
[348208052,1736391049356,-500.0,0.00010545,2]
[348208053,1736391049366,-500.0,0.00010545,2]
[348208054,1736391049375,-500.0,0.00010545,2]
[348208055,1736391049384,-500.0,0.00010545,2]
[348208056,1736391049394,-500.0,0.00010545,2]
[348208057,1736391049404,-2301.04,0.00010545,2]
[348208058,1736391049414,-503.58228007,0.00010545,2]
[348208059,1736391049424,-184.98592745,0.00010545,2]
[348208060,1736391049433,-500.0,0.00010545,2]
[348208061,1736391049443,-549.45,0.00010545,2]
[348208062,1736391049452,-500.0,0.00010545,2]
[348208063,1736391049462,-500.0,0.00010545,2]
[348208064,1736391049472,-500.0,0.00010545,2]
[348208065,1736391049481,-257.44133277,0.00010545,2]
[348208066,1736391049491,-500.0,0.00010545,2]
[348208067,1736391049501,-500.0,0.00010545,2]
[348208068,1736391049511,-500.0,0.00010545,2]
[348208069,1736391049521,-500.0,0.00010545,2]
[348208070,1736391049530,-500.0,0.00010545,2]
[348208071,1736391049539,-1105.18,0.00010545,2]
[348208072,1736391049550,-500.0,0.00010545,2]
[348208073,1736391049560,-1691.78,0.00010545,2]
[348208074,1736391049570,-500.0,0.00010545,2]
[348208075,1736391049579,-500.0,0.00010545,2]
[348208076,1736391049590,-682.17,0.00010545,2]
[348208077,1736391049599,-507.35,0.00010545,2]
[348208078,1736391049609,-500.0,0.00010545,2]
[348208079,1736391049618,-1703.58,0.00010545,2]
[348208080,1736391049627,-500.0,0.00010545,2]
[348208081,1736391049637,-500.0,0.00010545,2]
[348208082,1736391049647,-500.0,0.00010545,2]
[348208083,1736391049656,-507.37415422,0.00010545,2]
[348208084,1736391049667,-500.0,0.00010545,2]
[348208085,1736391049676,-500.0,0.00010545,2]
[348208086,1736391049686,-758.63,0.00010545,2]
[348208087,1736391049696,-500.0,0.00010545,2]
[348208088,1736391049706,-500.0,0.00010545,2]
[348208089,1736391049716,-500.0,0.00010545,2]
[348208090,1736391049725,-500.0,0.00010545,2]
[348208091,1736391049735,-500.0,0.00010545,2]
[348208092,1736391049745,-500.0,0.00010545,2]
[348208093,1736391049755,-500.0,0.00010545,2]
[348208094,1736391049766,-500.0,0.00010545,2]
[348208095,1736391049776,-428.79736938,0.00010545,2]
[348208096,1736391049786,-500.0,0.00010545,2]
[348208097,1736391049796,-500.0,0.00010545,2]
[348208098,1736391049805,-1254.93,0.00010545,2]
[348208099,1736391049815,-1657.62,0.00010545,2]
[348208100,1736391049825,-740.37,0.00010545,2]
[348208101,1736391049835,-2481.47,0.00010545,2]
[348208102,1736391049844,-500.0,0.00010545,2]
[348208103,1736391049853,-500.0,0.00010545,2]
[348208104,1736391049862,-500.0,0.00010545,2]
[348208105,1736391049872,-692.75,0.00010545,2]
[348208106,1736391049882,-500.0,0.00010545,2]
[348208107,1736391049896,-500.0,0.00010545,2]
[348208108,1736391049906,-1709.51,0.00010545,2]
[348208109,1736391049915,-500.0,0.00010545,2]
[348208110,1736391049925,-500.0,0.00010545,2]
[348208111,1736391049935,-500.0,0.00010545,2]
[348208112,1736391049944,-500.0,0.00010545,2]
[348208113,1736391049953,-582.01,0.00010545,2]
[348208114,1736391049963,-500.0,0.00010545,2]
[348208115,1736391049974,-327.58075346,0.00010545,2]
[348208116,1736391049984,-500.0,0.00010545,2]
[348208117,1736391049994,-1868.59,0.00010545,2]
[348208118,1736391050003,-500.0,0.00010545,2]
[348208119,1736391050012,-513.86533919,0.00010546,2]
[348208120,1736391050022,-517.3129276,0.00010546,2]
[348208121,1736391050031,-500.0,0.00010546,2]
[348208122,1736391050040,-500.0,0.00010546,2]
[348208123,1736391050050,-500.0,0.00010546,2]
[348208124,1736391050058,-500.0,0.00010546,2]
[348208125,1736391050068,-500.0,0.00010546,2]
[348208126,1736391050078,-500.0,0.00010546,2]
[348208127,1736391050089,-317.57966019,0.00010546,2]
[348208128,1736391050099,-500.0,0.00010546,2]
[348208129,1736391050108,-500.0,0.00010546,2]
[348208130,1736391050117,-500.0,0.00010546,2]
[348208131,1736391050127,-508.53125809,0.00010546,2]
[348208132,1736391050136,-500.0,0.00010546,2]
[348208133,1736391050145,-501.19696151,0.00010546,2]
[348208134,1736391050155,-500.0,0.00010546,2]
[348208135,1736391050165,-495.64335689,0.00010546,2]
[348208136,1736391050175,-500.0,0.00010546,2]
[348208137,1736391050185,-500.0,0.00010546,2]
[348208138,1736391050194,-652.67,0.00010546,2]
[348208139,1736391050204,-500.0,0.00010546,2]
[348208140,1736391050213,-500.0,0.00010546,2]
[348208141,1736391050222,-590.79,0.00010546,2]
[348208142,1736391050232,-500.0,0.00010546,2]
[348208143,1736391050241,-464.77444382,0.00010546,2]
[348208144,1736391050251,-500.0,0.00010546,2]
[348208145,1736391050260,-385.98885119,0.00010546,2]
[348208146,1736391050270,-522.55392291,0.00010546,2]
[348208147,1736391050280,-500.0,0.00010546,2]
[348208148,1736391050289,-500.0,0.00010546,2]
[348208149,1736391050299,-662.49,0.00010546,2]
[348208150,1736391050308,-500.0,0.00010546,2]
[348208151,1736391050318,-500.0,0.00010546,2]
[348208152,1736391050328,-500.0,0.00010546,2]
[348208153,1736391050339,-500.0,0.00010546,2]
[348208154,1736391050348,-500.0,0.00010546,2]
[348208155,1736391050359,-500.0,0.00010546,2]
[348208156,1736391050369,-380.46836888,0.00010546,2]
[348208157,1736391050379,-500.0,0.00010546,2]
[348208158,1736391050389,-500.0,0.00010546,2]
[348208159,1736391050399,-166.50207026,0.00010546,2]
[348208160,1736391050408,-548.38979471,0.00010546,2]
[348208161,1736391050418,-500.0,0.00010546,2]
[348208162,1736391050427,-500.0,0.00010546,2]
[348208163,1736391050437,-500.0,0.00010546,2]
[348208164,1736391050447,-500.0,0.00010546,2]
[348208165,1736391050458,-500.0,0.00010546,2]
[348208166,1736391050468,-500.0,0.00010546,2]
[348208167,1736391050478,-500.0,0.00010546,2]
[348208168,1736391050488,-500.0,0.00010546,2]
[348208169,1736391050498,-500.0,0.00010546,2]
[348208170,1736391050507,-500.0,0.00010546,2]
[348208171,1736391050518,-519.66386089,0.00010546,2]
[348208172,1736391050528,-500.0,0.00010546,2]
[348208173,1736391050538,-500.0,0.00010546,2]
[348208174,1736391050548,-500.0,0.00010546,2]
[348208175,1736391050558,-630.31,0.00010546,2]
[348208176,1736391050567,-263.06928682,0.00010546,2]
[348208177,1736391050577,-1257.26,0.00010546,2]
[348208178,1736391050588,-500.0,0.00010546,2]
[348208179,1736391050597,-500.0,0.00010546,2]
[348208180,1736391050607,-500.0,0.00010546,2]
[348208181,1736391050617,-500.0,0.00010546,2]
[348208182,1736391050626,-500.0,0.00010546,2]
[348208183,1736391050636,-500.0,0.00010546,2]
[348208184,1736391050645,-544.83375771,0.00010546,2]
[348208185,1736391050655,-500.0,0.00010546,2]
[348208186,1736391050665,-1849.27,0.00010546,2]
[348208187,1736391050675,-949.08,0.00010547,2]
[348208188,1736391050684,-500.0,0.00010547,2]
[348208189,1736391050693,-596.23,0.00010547,2]
[348208190,1736391050703,-779.79,0.00010547,2]
[348208191,1736391050713,-1022.27,0.00010547,2]
[348208192,1736391050723,-531.79,0.00010547,2]
[348208193,1736391050733,-798.09,0.00010547,2]
[348208194,1736391050743,-1283.9,0.00010547,2]
[348208195,1736391050752,-1872.27,0.00010547,2]
[348208196,1736391050762,-856.53,0.00010547,2]
[348208197,1736391050772,-1309.76,0.00010547,2]
[348208198,1736391050781,-917.15,0.00010547,2]
[348208199,1736391050791,-622.53,0.00010547,2]
[348208200,1736391050800,-1102.42,0.00010547,2]
[348208201,1736391050808,-600.1,0.00010547,2]
[348208202,1736391050817,-963.46,0.00010547,2]
[348208203,1736391050827,-877.77,0.00010547,2]
[348208204,1736391050837,-623.47,0.00010547,2]
[348208205,1736391050847,-1224.09,0.00010547,2]
[348208206,1736391050856,-1600.42,0.00010547,2]
[348208207,1736391050866,-1202.63,0.00010547,2]
[348208208,1736391050876,-648.68,0.00010547,2]
[348208209,1736391050886,-2760.29,0.00010547,2]
[348208210,1736391050899,-500.0,0.00010547,2]
[348208211,1736391050910,-579.84,0.00010547,2]
[348208212,1736391050920,-500.0,0.00010547,2]
[348208213,1736391050931,-500.0,0.00010547,2]
[348208214,1736391050941,-500.0,0.00010547,2]
[348208215,1736391050951,-500.0,0.00010547,2]
[348208216,1736391050961,-1218.42,0.00010547,2]
[348208217,1736391050973,-505.32,0.00010547,2]
[348208218,1736391050983,-778.11,0.00010547,2]
[348208219,1736391050993,-500.0,0.00010547,2]
[348208220,1736391051004,-207.68032069,0.00010548,2]
[348208221,1736391051014,-500.0,0.00010572,2]
[348208222,1736391051024,-150.0,0.00010575,2]
[348208223,1736391051033,-500.0,0.000106,2]
[348208224,1736391051044,-428.17724003,0.00010616,2]
[348208225,1736391051056,-500.0,0.00010627,2]
[348208226,1736391051066,-150.0,0.00010641,2]
[348208227,1736391051076,-500.0,0.00010655,2]
[348208228,1736391051088,-207.68032069,0.00010655,2]
[348208229,1736391051097,-500.0,0.00010682,2]
[348208230,1736391051107,-531.79,0.00010684,2]
[348208231,1736391051116,-991.263,0.0001069,2]
[348208232,1736391051126,-636.207,0.0001069,2]
[348208233,1736391051136,-567.439,0.0001069,2]
[348208234,1736391051146,-150.241,0.0001069,2]
[348208235,1736391051155,-1864.692,0.0001069,2]
[348208236,1736391051165,-3783.76,0.0001069,2]
[348208237,1736391051175,-821.0,0.0001069,2]
[348208238,1736391051184,-1261.524,0.0001069,2]
[348208239,1736391051194,-917.717,0.0001069,2]
[348208240,1736391051204,-500.51,0.0001069,2]
[348208241,1736391051214,-538.091,0.0001069,2]
[348208242,1736391051223,-1270.947,0.0001069,2]
[348208243,1736391051234,-3908.882,0.0001069,2]
[348208244,1736391051243,-9647.133,0.0001069,2]
[348208245,1736391051253,-265.641,0.0001069,2]
[348208246,1736391051263,-229.0,0.0001069,2]
[348208247,1736391051272,-1000.0,0.000107,2]
[348208248,1736391051283,-917.0365992,0.00010709,2]
[348208249,1736391051293,-257.58,0.00010721,2]
[348208250,1736391051303,-1513.03,0.00010721,2]
[348208251,1736391051312,-1483.16,0.00010721,2]
[348208252,1736391051322,-794.11,0.00010721,2]
[348208253,1736391051332,-507.57,0.00010721,2]
[348208254,1736391051341,-1696.32,0.00010721,2]
[348208255,1736391051351,-508.07642464,0.00010721,2]
[348208256,1736391051361,-528.48,0.00010721,2]
[348208257,1736391051371,-513.54252511,0.00010721,2]
[348208258,1736391051380,-1146.33,0.00010721,2]
[348208259,1736391051391,-1011.46,0.00010721,2]
[348208260,1736391051400,-500.0,0.00010721,2]
[348208261,1736391051410,-500.0,0.00010721,2]
[348208262,1736391051420,-1159.44,0.00010721,2]
[348208263,1736391051430,-3737.62,0.00010721,2]
[348208264,1736391051440,-150.0,0.00010731,2]
[348208265,1736391051450,-207.68032069,0.00010762,2]
[348208266,1736391051459,-500.0,0.00010819,2]
[348208267,1736391051469,-500.0,0.00010819,2]
[348208268,1736391051479,-629.30867837,0.00010819,2]
[348208269,1736391051488,-500.0,0.00010819,2]
[348208270,1736391051498,-500.0,0.00010819,2]
[348208271,1736391051507,-606.09583706,0.00010819,2]
[348208272,1736391051517,-311.64949355,0.00010819,2]
[348208273,1736391051528,-500.0,0.00010819,2]
[348208274,1736391051537,-500.0,0.00010819,2]
[348208275,1736391051547,-500.0,0.00010819,2]
[348208276,1736391051558,-500.0,0.00010819,2]
[348208277,1736391051568,-638.45036015,0.00010819,2]
[348208278,1736391051578,-501.52,0.00010819,2]
[348208279,1736391051588,-412.31703463,0.00010819,2]
[348208280,1736391051598,-500.0,0.00010819,2]
[348208281,1736391051607,-944.17,0.00010819,2]
[348208282,1736391051618,-449.60320724,0.00010819,2]
[348208283,1736391051628,-500.0,0.00010819,2]
[348208284,1736391051638,-500.0,0.00010819,2]
[348208285,1736391051648,-500.0,0.00010819,2]
[348208286,1736391051659,-500.0,0.00010819,2]
[348208287,1736391051669,-355.29782782,0.00010819,2]
[348208288,1736391051679,-1207.39,0.00010819,2]
[348208289,1736391051689,-500.0,0.00010819,2]
[348208290,1736391051699,-500.0,0.00010819,2]
[348208291,1736391051709,-500.0,0.00010819,2]
[348208292,1736391051719,-500.0,0.00010819,2]
[348208293,1736391051729,-500.0,0.00010819,2]
[348208294,1736391051739,-1041.47,0.00010819,2]
[348208295,1736391051749,-500.0,0.00010819,2]
[348208296,1736391051758,-500.0,0.00010819,2]
[348208297,1736391051767,-500.0,0.00010819,2]
[348208298,1736391051777,-566.21,0.00010819,2]
[348208299,1736391051787,-3044.14,0.00010819,2]
[348208300,1736391051797,-500.0,0.00010819,2]
[348208301,1736391051807,-500.0,0.00010819,2]
[348208302,1736391051817,-500.0,0.00010819,2]
[348208303,1736391051827,-500.0,0.00010819,2]
[348208304,1736391051838,-500.0,0.00010819,2]
[348208305,1736391051848,-500.0,0.00010819,2]
[348208306,1736391051857,-500.0,0.00010819,2]
[348208307,1736391051867,-500.0,0.00010819,2]
[348208308,1736391051877,-283.54320172,0.00010819,2]
[348208309,1736391051888,-500.0,0.00010819,2]
[348208310,1736391051900,-500.0,0.00010819,2]
[348208311,1736391051910,-500.0,0.00010819,2]
[348208312,1736391051920,-500.0,0.00010819,2]
[348208313,1736391051931,-500.0,0.00010819,2]
[348208314,1736391051942,-500.0,0.00010819,2]
[348208315,1736391051952,-522.66618805,0.00010819,2]
[348208316,1736391051963,-500.0,0.00010819,2]
[348208317,1736391051973,-500.0,0.00010819,2]
[348208318,1736391051983,-500.0,0.00010819,2]
[348208319,1736391051993,-500.0,0.00010819,2]
[348208320,1736391052003,-545.16,0.00010819,2]
[348208321,1736391052012,-500.0,0.00010819,2]
[348208322,1736391052022,-500.0,0.00010819,2]
[348208323,1736391052032,-497.19276236,0.00010819,2]
[348208324,1736391052042,-717.41,0.00010819,2]
[348208325,1736391052052,-515.57766587,0.00010819,2]
[348208326,1736391052061,-500.0,0.00010819,2]
[348208327,1736391052070,-1933.11,0.00010819,2]
[348208328,1736391052079,-500.0,0.00010819,2]
[348208329,1736391052093,-1249.27,0.00010819,2]
[348208330,1736391052103,-500.0,0.00010819,2]
[348208331,1736391052113,-412.55272203,0.00010819,2]
[348208332,1736391052123,-500.0,0.00010819,2]
[348208333,1736391052132,-500.0,0.00010819,2]
[348208334,1736391052142,-500.0,0.00010819,2]
[348208335,1736391052152,-2301.04,0.00010819,2]
[348208336,1736391052162,-500.0,0.00010819,2]
[348208337,1736391052172,-549.45,0.00010819,2]
[348208338,1736391052181,-500.0,0.00010819,2]
[348208339,1736391052191,-500.0,0.00010819,2]
[348208340,1736391052201,-500.0,0.00010819,2]
[348208341,1736391052211,-508.65329205,0.00010819,2]
[348208342,1736391052221,-512.31188695,0.00010819,2]
[348208343,1736391052232,-500.0,0.00010819,2]
[348208344,1736391052242,-500.0,0.00010819,2]
[348208345,1736391052252,-500.0,0.00010819,2]
[348208346,1736391052262,-1105.18,0.00010819,2]
[348208347,1736391052273,-500.0,0.00010819,2]
[348208348,1736391052282,-1691.78,0.00010819,2]
[348208349,1736391052293,-453.82533372,0.00010819,2]
[348208350,1736391052303,-500.0,0.00010819,2]
[348208351,1736391052313,-682.17,0.00010819,2]
[348208352,1736391052323,-507.35,0.00010819,2]
[348208353,1736391052333,-500.0,0.00010819,2]
[348208354,1736391052343,-1703.58,0.00010819,2]
[348208355,1736391052353,-500.0,0.00010819,2]
[348208356,1736391052515,-500.0,0.00010819,2]
[348208357,1736391052526,-500.0,0.00010819,2]
[348208358,1736391052536,-500.0,0.00010819,2]
[348208359,1736391052545,-500.0,0.00010819,2]
[348208360,1736391052555,-758.63,0.00010819,2]
[348208361,1736391052564,-500.0,0.00010819,2]
[348208362,1736391052573,-500.0,0.00010819,2]
[348208363,1736391052584,-500.0,0.00010819,2]
[348208364,1736391052594,-500.0,0.00010819,2]
[348208365,1736391052603,-500.0,0.00010819,2]
[348208366,1736391052611,-500.0,0.00010819,2]
[348208367,1736391052621,-500.0,0.00010819,2]
[348208368,1736391052630,-500.0,0.00010819,2]
[348208369,1736391052642,-500.0,0.00010819,2]
[348208370,1736391052652,-500.0,0.00010819,2]
[348208371,1736391052662,-1254.93,0.00010819,2]
[348208372,1736391052671,-740.37,0.00010819,2]
[348208373,1736391052680,-1657.62,0.00010819,2]
[348208374,1736391052690,-2481.47,0.00010819,2]
[348208375,1736391052699,-500.0,0.00010819,2]
[348208376,1736391052708,-500.0,0.00010819,2]
[348208377,1736391052718,-285.49402772,0.00010819,2]
[348208378,1736391052727,-500.0,0.00010819,2]
[348208379,1736391052737,-692.75,0.00010819,2]
[348208380,1736391052748,-500.0,0.00010819,2]
[348208381,1736391052759,-1709.51,0.00010819,2]
[348208382,1736391052769,-500.0,0.00010819,2]
[348208383,1736391052779,-500.0,0.00010819,2]
[348208384,1736391052790,-500.0,0.00010819,2]
[348208385,1736391052800,-500.0,0.00010819,2]
[348208386,1736391052810,-582.01,0.00010819,2]
[348208387,1736391052819,-500.0,0.00010819,2]
[348208388,1736391052830,-500.0,0.00010819,2]
[348208389,1736391052840,-1868.59,0.00010819,2]
[348208390,1736391052849,-507.0004931,0.0001082,2]
[348208391,1736391052858,-506.85197881,0.0001082,2]
[348208392,1736391052867,-281.99614739,0.0001082,2]
[348208393,1736391052877,-627.72857504,0.0001082,2]
[348208394,1736391052886,-500.0,0.0001082,2]
[348208395,1736391052899,-508.82899951,0.0001082,2]
[348208396,1736391052908,-515.97492456,0.0001082,2]
[348208397,1736391052917,-500.0,0.0001082,2]
[348208398,1736391052926,-494.68962078,0.0001082,2]
[348208399,1736391052937,-509.05470448,0.0001082,2]
[348208400,1736391052947,-508.48410679,0.0001082,2]
[348208401,1736391052958,-530.59313684,0.0001082,2]
[348208402,1736391052968,-500.0,0.0001082,2]
[348208403,1736391052978,-652.67,0.0001082,2]
[348208404,1736391052987,-500.0,0.0001082,2]
[348208405,1736391052996,-500.0,0.0001082,2]
[348208406,1736391053005,-590.79,0.0001082,2]
[348208407,1736391053016,-500.0,0.0001082,2]
[348208408,1736391053027,-500.0,0.0001082,2]
[348208409,1736391053038,-465.54780093,0.0001082,2]
[348208410,1736391053048,-500.0,0.0001082,2]
[348208411,1736391053058,-662.49,0.0001082,2]
[348208412,1736391053067,-500.0,0.0001082,2]
[348208413,1736391053077,-500.0,0.0001082,2]
[348208414,1736391053086,-450.73836111,0.0001082,2]
[348208415,1736391053095,-500.0,0.0001082,2]
[348208416,1736391053104,-500.0,0.0001082,2]
[348208417,1736391053115,-599.09933613,0.0001082,2]
[348208418,1736391053126,-500.0,0.0001082,2]
[348208419,1736391053136,-500.0,0.0001082,2]
[348208420,1736391053146,-500.0,0.0001082,2]
[348208421,1736391053155,-500.0,0.0001082,2]
[348208422,1736391053165,-500.0,0.0001082,2]
[348208423,1736391053176,-500.0,0.0001082,2]
[348208424,1736391053187,-298.68555264,0.0001082,2]
[348208425,1736391053196,-500.0,0.0001082,2]
[348208426,1736391053205,-500.0,0.0001082,2]
[348208427,1736391053214,-500.0,0.0001082,2]
[348208428,1736391053224,-167.88431495,0.0001082,2]
[348208429,1736391053233,-500.0,0.0001082,2]
[348208430,1736391053242,-500.0,0.0001082,2]
[348208431,1736391053252,-640.98077934,0.0001082,2]
[348208432,1736391053261,-500.0,0.0001082,2]
[348208433,1736391053271,-630.31,0.0001082,2]
[348208434,1736391053280,-1257.26,0.0001082,2]
[348208435,1736391053289,-500.0,0.0001082,2]
[348208436,1736391053301,-514.27489801,0.0001082,2]
[348208437,1736391053311,-500.0,0.0001082,2]
[348208438,1736391053320,-500.0,0.0001082,2]
[348208439,1736391053330,-528.50112427,0.0001082,2]
[348208440,1736391053340,-156.79770147,0.0001082,2]
[348208441,1736391053349,-500.0,0.0001082,2]
[348208442,1736391053359,-1849.27,0.0001082,2]
[348208443,1736391053369,-949.08,0.00010821,2]
[348208444,1736391053378,-500.0,0.00010821,2]
[348208445,1736391053388,-596.23,0.00010821,2]
[348208446,1736391053398,-779.79,0.00010821,2]
[348208447,1736391053407,-1022.27,0.00010821,2]
[348208448,1736391053417,-531.79,0.00010821,2]
[348208449,1736391053426,-798.09,0.00010821,2]
[348208450,1736391053436,-1283.9,0.00010821,2]
[348208451,1736391053445,-1872.27,0.00010821,2]
[348208452,1736391053455,-856.53,0.00010821,2]
[348208453,1736391053464,-1309.76,0.00010821,2]
[348208454,1736391053473,-917.15,0.00010821,2]
[348208455,1736391053483,-622.53,0.00010821,2]
[348208456,1736391053493,-1102.42,0.00010821,2]
[348208457,1736391053502,-600.1,0.00010821,2]
[348208458,1736391053512,-963.46,0.00010821,2]
[348208459,1736391053522,-877.77,0.00010821,2]
[348208460,1736391053531,-623.47,0.00010821,2]
[348208461,1736391053541,-1224.09,0.00010821,2]
[348208462,1736391053551,-1600.42,0.00010821,2]
[348208463,1736391053561,-1202.63,0.00010821,2]
[348208464,1736391053570,-648.68,0.00010821,2]
[348208465,1736391053580,-2760.29,0.00010821,2]
[348208466,1736391053590,-500.0,0.00010821,2]
[348208467,1736391053600,-579.84,0.00010821,2]
[348208468,1736391053610,-500.0,0.00010821,2]
[348208469,1736391053620,-500.0,0.00010821,2]
[348208470,1736391053631,-500.0,0.00010821,2]
[348208471,1736391053641,-521.22384735,0.00010821,2]
[348208472,1736391053651,-1218.42,0.00010821,2]
[348208473,1736391053661,-505.32,0.00010821,2]
[348208474,1736391053671,-778.11,0.00010821,2]
[348208475,1736391053680,-500.0,0.00010821,2]
[348208476,1736391053690,-150.0,0.00010851,2]
[348208477,1736391053699,-207.68032069,0.00010869,2]
[348208478,1736391053709,-12286.64123868,0.00010893,2]
[348208479,1736391053720,-272.0,0.0001092,2]
[348208480,1736391053729,-475.0,0.0001092,2]
[348208481,1736391053741,-150.0,0.00010943,2]
[348208482,1736391053751,-428.17724003,0.00010945,2]
[348208483,1736391053760,-150.0,0.00010949,2]
[348208484,1736391053769,-150.85705604,0.00010958,2]
[348208485,1736391053779,-531.79,0.00010958,2]
[348208486,1736391053789,-999.0,0.00010958,2]
[348208487,1736391053798,-150.0,0.00010959,2]
[348208488,1736391053807,-150.0,0.00010963,2]
[348208489,1736391053817,-207.68032069,0.00010976,2]
[348208490,1736391053828,-500.0,0.00010986,2]
[348208491,1736391053838,-1513.03,0.00010995,2]
[348208492,1736391053847,-1483.16,0.00010995,2]
[348208493,1736391053856,-794.11,0.00010995,2]
[348208494,1736391053866,-507.57,0.00010995,2]
[348208495,1736391053876,-1696.32,0.00010995,2]
[348208496,1736391053886,-528.48,0.00010995,2]
[348208497,1736391053899,-1146.33,0.00010995,2]
[348208498,1736391053909,-1011.46,0.00010995,2]
[348208499,1736391053918,-500.0,0.00010995,2]
[348208500,1736391053928,-500.0,0.00010995,2]
[348208501,1736391053939,-1159.44,0.00010995,2]
[348208502,1736391053948,-3737.62,0.00010995,2]
[348208503,1736391053958,-428.17724003,0.00010999,2]
[348208504,1736391053968,-1303.05749728,0.00011,2]
[348208505,1736391053978,-89931.03602799,0.00011,2]
[348208506,1736391053988,-29489.35760539,0.00011,2]
[348208507,1736391053998,-550.0,0.00011,2]
[348208508,1736391054008,-1265.92312167,0.0001105,2]
[348208509,1736391054018,-207.68032069,0.00011083,2]
[348208510,1736391054027,-500.0,0.00011093,2]
[348208511,1736391054037,-500.0,0.00011093,2]
[348208512,1736391054047,-500.0,0.00011093,2]
[348208513,1736391054056,-500.0,0.00011093,2]
[348208514,1736391054065,-500.0,0.00011093,2]
[348208515,1736391054075,-500.0,0.00011093,2]
[348208516,1736391054085,-500.0,0.00011093,2]
[348208517,1736391054094,-500.0,0.00011093,2]
[348208518,1736391054103,-501.52,0.00011093,2]
[348208519,1736391054114,-500.0,0.00011093,2]
[348208520,1736391054124,-944.17,0.00011093,2]
[348208521,1736391054134,-500.0,0.00011093,2]
[348208522,1736391054145,-500.0,0.00011093,2]
[348208523,1736391054155,-500.0,0.00011093,2]
[348208524,1736391054165,-500.0,0.00011093,2]
[348208525,1736391054175,-1207.39,0.00011093,2]
[348208526,1736391054184,-500.0,0.00011093,2]
[348208527,1736391054194,-532.14627901,0.00011093,2]
[348208528,1736391054204,-500.0,0.00011093,2]
[348208529,1736391054213,-500.0,0.00011093,2]
[348208530,1736391054226,-500.0,0.00011093,2]
[348208531,1736391054235,-519.27803899,0.00011093,2]
[348208532,1736391054245,-1041.47,0.00011093,2]
[348208533,1736391054255,-220.30856933,0.00011093,2]
[348208534,1736391054264,-510.85827897,0.00011093,2]
[348208535,1736391054273,-566.21,0.00011093,2]
[348208536,1736391054285,-3044.14,0.00011093,2]
[348208537,1736391054295,-500.0,0.00011093,2]
[348208538,1736391054305,-500.0,0.00011093,2]
[348208539,1736391054315,-500.0,0.00011093,2]
[348208540,1736391054324,-500.0,0.00011093,2]
[348208541,1736391054335,-500.0,0.00011093,2]
[348208542,1736391054345,-500.0,0.00011093,2]